fUSD/lending_fUSD_20240125
["ID","MTS","AMOUNT","RATE_DAILY","PERIOD"]
[312730226,1706189504893,-3294.47,0.00055342,120]
[312730227,1706189504902,-1413.54,0.00055342,120]
[312730228,1706189504911,-557.9,0.00055342,120]
[312730229,1706189504921,-1162.13,0.00055342,120]
[312730230,1706189504932,-658.39,0.00055342,120]
[312730231,1706189504942,-707.38,0.00055342,120]
[312730232,1706189504953,-806.49,0.00055342,120]
[312730233,1706189504962,-534.89,0.00055342,120]
[312730234,1706189504974,-1029.78043106,0.00055342,7]
[312730235,1706189504985,-2660.25,0.00055342,120]
[312730236,1706189504995,-654.66,0.00055342,120]
[312730237,1706189505006,-1220.14,0.00055342,120]
[312730238,1706189505018,-697.52,0.00055342,120]
[312730239,1706189505028,-1219.85,0.00055342,120]
[312730240,1706189505038,-500.0,0.00055342,120]
[312730241,1706189505047,-2328.6,0.00055342,120]
[312730242,1706189505057,-150.6568142,0.00055342,120]
[312730243,1706189505067,-553.77,0.00055342,120]
[312730244,1706189505077,-2392.7,0.00055342,120]
[312730245,1706189505089,-742.25,0.00055342,120]
[312730246,1706189505100,-766.81,0.00055342,120]
[312730247,1706189505110,-720.22,0.00055342,120]
[312730248,1706189505121,-506.85,0.00055342,120]
[312730249,1706189505131,-2585.71,0.00055342,120]
[312730250,1706189505141,-895.53,0.00055342,2]
[312730251,1706189505150,-1966.47,0.00055342,30]
[312730252,1706189505160,-568.09,0.00055342,120]
[312730253,1706189505170,-1097.13,0.00055342,120]
[312730254,1706189505179,-563.0,0.00055342,120]
[312730255,1706189505188,-678.21,0.00055342,120]
[312730256,1706189505198,-505.22,0.00055342,120]
[312730257,1706189505207,-1184.05,0.00055342,7]
[312730258,1706189505216,-1978.23,0.00055342,120]
[312730259,1706189505226,-775.02,0.00055342,120]
[312730260,1706189505235,-551.10931997,0.00055342,120]
[312730261,1706189505245,-563.64,0.00055342,120]
[312730262,1706189505255,-1788.81,0.00055342,120]
[312730263,1706189505267,-800.86,0.00055342,120]
[312730264,1706189505277,-824.87,0.00055342,120]
[312730265,1706189505286,-624.88,0.00055342,120]
[312730266,1706189505297,-500.0,0.00055342,120]
[312730267,1706189505307,-3861.01,0.00055342,5]
[312730268,1706189505316,-562.52,0.00055342,120]
[312730269,1706189505360,-702.37,0.00055342,120]
[312730270,1706189505369,-1562.8,0.00055342,120]
[312730271,1706189505379,-729.44,0.00055342,120]
[312730272,1706189505389,-674.25,0.00055342,120]
[312730273,1706189505398,-1360.58,0.00055342,120]
[312730274,1706189505408,-694.83,0.00055342,2]
[312730275,1706189505417,-530.21,0.00055342,120]
[312730276,1706189505427,-650.93,0.00055342,120]
[312730277,1706189505437,-622.63,0.00055342,120]
[312730278,1706189505447,-1172.34,0.00055342,120]
[312730279,1706189505456,-1372.24,0.00055342,120]
[312730280,1706189505466,-500.0,0.00055342,120]
[312730281,1706189505475,-1771.9,0.00055342,120]
[312730282,1706189505485,-634.99,0.00055342,120]
[312730283,1706189505494,-200.0,0.0005537,120]
[312730284,1706189505503,-780.6992596,0.00055525,97]
[312730285,1706189505512,-150.0,0.00055543,15]
[312730286,1706189505522,-150.0,0.00055543,15]
[312730287,1706189505530,-2000.0,0.000556,120]
[312730288,1706189505539,-500.0,0.00055616,30]
[312730289,1706189505549,-847.49349447,0.00055616,120]
[312730290,1706189505558,-553.42291868,0.00055616,2]
[312730291,1706189505567,-552.54,0.00055616,120]
[312730292,1706189505577,-180.92296335,0.00055616,120]
[312730293,1706189505586,-491.66,0.00055616,120]
[312730294,1706189505595,-533.16,0.00055616,120]
[312730295,1706189505604,-1264.22486654,0.00055616,120]
[312730296,1706189505613,-4443.74777307,0.00055616,120]
[312730297,1706189505623,-466.24743549,0.00055616,120]
[312730298,1706189505637,-793.79394413,0.00055616,120]
[312730299,1706189505648,-876.64559068,0.00055616,120]
[312730300,1706189505657,-605.44587693,0.00055616,120]
[312730301,1706189505666,-798.95869311,0.00055616,120]
[312730302,1706189505675,-741.53006558,0.00055616,120]
[312730303,1706189505687,-522.75359079,0.00055616,120]
[312730304,1706189505696,-1440.43521143,0.00055616,120]
[312730305,1706189505706,-3848.68,0.00055616,120]
[312730306,1706189505718,-659.54437683,0.00055616,120]
[312730307,1706189505729,-960.80726364,0.00055616,120]
[312730308,1706189505740,-3294.55,0.00055616,120]
[312730309,1706189505749,-1413.61503372,0.00055616,120]
[312730310,1706189505759,-558.02925696,0.00055616,120]
[312730311,1706189505769,-1162.29854454,0.00055616,120]
[312730312,1706189505779,-658.60524225,0.00055616,120]
[312730313,1706189505789,-707.5297067,0.00055616,120]
[312730314,1706189505798,-806.62701415,0.00055616,120]
[312730315,1706189505808,-534.9368774,0.00055616,120]
[312730316,1706189505817,-2660.33798966,0.00055616,120]
[312730317,1706189505826,-654.77746537,0.00055616,120]
[312730318,1706189505836,-1220.2527291,0.00055616,120]
[312730319,1706189505845,-697.5705316,0.00055616,120]
[312730320,1706189505854,-1220.06056661,0.00055616,120]
[312730321,1706189505864,-245.63852196,0.00055616,120]
[312730322,1706189505873,-2328.83428519,0.00055616,120]
[312730323,1706189505882,-553.8364046,0.00055616,120]
[312730324,1706189505891,-2392.77040679,0.00055616,120]
[312730325,1706189505901,-742.47487856,0.00055616,120]
[312730326,1706189505910,-766.84665364,0.00055616,120]
[312730327,1706189505919,-720.40325255,0.00055616,120]
[312730328,1706189505929,-506.95519644,0.00055616,120]
[312730329,1706189505937,-2585.71,0.00055616,120]
[312730330,1706189505946,-895.66431865,0.00055616,2]
[312730331,1706189505955,-1966.50376708,0.00055616,30]
[312730332,1706189505965,-568.23039568,0.00055616,120]
[312730333,1706189505974,-1097.26418675,0.00055616,120]
[312730334,1706189505983,-563.15619664,0.00055616,120]
[312730335,1706189505992,-678.3270196,0.00055616,120]
[312730336,1706189506001,-505.36192497,0.00055616,120]
[312730337,1706189506010,-1184.12333677,0.00055616,7]
[312730338,1706189506019,-1978.30282175,0.00055616,120]
[312730339,1706189506028,-775.23260646,0.00055616,120]
[312730340,1706189506038,-563.73992317,0.00055616,120]
[312730341,1706189506047,-1788.84495382,0.00055616,120]
[312730342,1706189506057,-801.00918826,0.00055616,120]
[312730343,1706189506067,-824.88427217,0.00055616,120]
[312730344,1706189506076,-624.97990368,0.00055616,120]
[312730345,1706189506086,-354.52,0.00055616,120]
[312730346,1706189506095,-3861.01354542,0.00055616,5]
[312730347,1706189506105,-562.71466643,0.00055616,120]
[312730348,1706189506114,-702.51672003,0.00055616,120]
[312730349,1706189506123,-1562.89596482,0.00055616,120]
[312730350,1706189506132,-729.47913451,0.00055616,120]
[312730351,1706189506140,-674.45138213,0.00055616,120]
[312730352,1706189506150,-1360.77071929,0.00055616,120]
[312730353,1706189506159,-695.04515923,0.00055616,2]
[312730354,1706189506168,-530.37525343,0.00055616,120]
[312730355,1706189506177,-651.09678634,0.00055616,120]
[312730356,1706189506187,-622.79185334,0.00055616,120]
[312730357,1706189506197,-1172.49816566,0.00055616,120]
[312730358,1706189506206,-1372.29296716,0.00055616,120]
[312730359,1706189506215,-340.34320204,0.00055616,120]
[312730360,1706189506224,-1771.9884633,0.00055616,120]
[312730361,1706189506233,-635.00361526,0.00055616,120]
[312730362,1706189506242,-292.0,0.00055616,3]
[312730363,1706189506252,-242.0,0.00055616,17]
[312730364,1706189506261,-2055.0,0.00055649,120]
[312730365,1706189506269,-2419.25420681,0.00055808,2]
[312730366,1706189506279,-201.0,0.00055843,51]
[312730367,1706189506289,-3230.13861787,0.0005587,120]
[312730368,1706189506298,-542.58357866,0.0005589,30]
[312730369,1706189506307,-1706.0,0.0005589,2]
[312730370,1706189506317,-430.0,0.0005589,2]
[312730371,1706189506326,-25533.7263507,0.00055962,2]
[312730372,1706189506335,-764.0432569,0.00055962,2]
[312730373,1706189506345,-2082.016089,0.00055962,2]
[312730374,1706189506356,-305.22388905,0.00056,30]
[312730375,1706189506368,-400000.0,0.00056,30]
[312730376,1706189506377,-154.0603,0.00056,30]
[312730377,1706189506386,-1000.0,0.00056,30]
[312730378,1706189506395,-300.0,0.00056,35]
[312730379,1706189506404,-2000.0,0.00056,30]
[312730380,1706189506414,-3222.0,0.00056,25]
[312730381,1706189506426,-300.0,0.00056,57]
[312730382,1706189506435,-200.0,0.00056055,120]
[312730383,1706189506445,-170.26,0.00056059,120]
[312730384,1706189506454,-150.0,0.0005613,30]
[312730385,1706189506463,-150.0,0.00056159,21]
[312730386,1706189506472,-150.0,0.00056159,21]
[312730387,1706189506483,-200.0,0.0005616,28]
[312730388,1706189506492,-247.0,0.00056164,19]
[312730389,1706189506502,-8000.0,0.000562,120]
[312730390,1706189506512,-394.66,0.00056358,2]
[312730391,1706189506522,-1448.36181392,0.00056381,5]
[312730392,1706189506531,-11016.93501508,0.000564,15]
[312730393,1706189506540,-780.6992596,0.000564,101]
[312730394,1706189506550,-156.19820719,0.00056438,4]
[312730395,1706189506559,-200.0,0.00056493,120]
[312730396,1706189506568,-152.0,0.00056537,8]
[312730397,1706189506577,-155.0,0.00056712,3]
[312730398,1706189506586,-253.0,0.00056712,20]
[312730399,1706189506595,-150.0,0.00056775,21]
[312730400,1706189506604,-150.0,0.00056775,21]
[312730401,1706189506614,-1500.0,0.00056829,14]
[312730402,1706189506624,-666.0,0.00056849,2]
[312730403,1706189506633,-304.99751768,0.00056892,14]
[312730404,1706189506645,-150.0,0.00056931,14]
[312730405,1706189506654,-150.0,0.00056984,14]
[312730406,1706189506663,-300.0,0.00057,58]
[312730407,1706189506672,-300.0,0.00057,36]
[312730408,1706189506682,-150.0,0.00057015,14]
[312730409,1706189506691,-3260.06370402,0.00057024,30]
[312730410,1706189506700,-1327.46899482,0.00057024,30]
[312730411,1706189506709,-2137.77479761,0.00057024,30]
[312730412,1706189506719,-2667.12452485,0.00057024,30]
[312730413,1706189506727,-2362.19608449,0.00057024,30]
[312730414,1706189506737,-1370.3845413,0.00057027,14]
[312730415,1706189506746,-300.0,0.00057031,14]
[312730416,1706189506754,-150.0,0.00057055,14]
[312730417,1706189506765,-200.0,0.00057068,120]
[312730418,1706189506775,-1500.0,0.00057095,14]
[312730419,1706189506785,-300.0,0.00057135,14]
[312730420,1706189506795,-1500.0,0.00057165,14]
[312730421,1706189506804,-300.0,0.00057171,14]
[312730422,1706189506814,-200.0,0.0005724,28]
[312730423,1706189506824,-201.3660272,0.00057244,2]
[312730424,1706189506833,-258.0,0.0005726,22]
[312730425,1706189506843,-1500.0,0.00057265,14]
[312730426,1706189506853,-780.6992596,0.00057275,106]
[312730427,1706189506863,-150.0,0.00057278,14]
[312730428,1706189506873,-1500.0,0.00057326,14]
[312730429,1706189506882,-2000.0,0.00057328,60]
[312730430,1706189506893,-1500.0,0.00057331,14]
[312730431,1706189506903,-150.0,0.0005734,30]
[312730432,1706189506914,-150.0,0.00057355,14]
[312730433,1706189506923,-215.2016592,0.0005737,14]
[312730434,1706189506932,-4220.0,0.0005739,2]
[312730435,1706189506942,-1064.0,0.0005739,2]
[312730436,1706189506951,-150.0,0.00057391,28]
[312730437,1706189506961,-150.0,0.00057391,28]
[312730438,1706189506972,-1500.0,0.00057486,14]
[312730439,1706189506982,-271.68663223,0.0005749,42]
[312730440,1706189506991,-71723.34964916,0.000575,2]
[312730441,1706189507001,-746.18138972,0.000575,2]
[312730442,1706189507011,-8000.0,0.000575,120]
[312730443,1706189507021,-325.0,0.00057504,120]
[312730444,1706189507032,-325.0,0.00057504,120]
[312730445,1706189507042,-325.0,0.00057514,120]
[312730446,1706189507051,-325.0,0.00057514,120]
[312730447,1706189507061,-325.0,0.00057514,120]
[312730448,1706189507070,-3260.06370402,0.00057522,30]
[312730449,1706189507079,-1327.46899482,0.00057522,30]
[312730450,1706189507090,-2137.77479761,0.00057522,30]
[312730451,1706189507100,-2667.12452485,0.00057522,30]
[312730452,1706189507110,-2362.19608449,0.00057522,30]
[312730453,1706189507119,-325.0,0.00057524,120]
[312730454,1706189507129,-325.0,0.00057524,120]
[312730455,1706189507139,-325.0,0.00057524,120]
[312730456,1706189507150,-160.00184019,0.00057532,2]
[312730457,1706189507160,-959.02781888,0.00057532,30]
[312730458,1706189507169,-196.48541005,0.00057532,2]
[312730459,1706189507181,-196.48541005,0.00057532,2]
[312730460,1706189507191,-13915.76098042,0.00057532,15]
[312730461,1706189507201,-500.0,0.00057532,10]
[312730462,1706189507211,-500.0,0.00057532,10]
[312730463,1706189507220,-500.0,0.00057532,10]
[312730464,1706189507229,-500.0,0.00057532,10]
[312730465,1706189507239,-500.0,0.00057532,10]
[312730466,1706189507248,-1125.0,0.00057534,120]
[312730467,1706189507258,-764.0432569,0.00057582,2]
[312730468,1706189507267,-2082.016089,0.00057582,2]
[312730469,1706189507277,-1855.0,0.0005759,2]
[312730470,1706189507286,-483.0,0.0005759,2]
[312730471,1706189507295,-200.0,0.00057616,120]
[312730472,1706189507304,-31867.4552259,0.00057621,2]
[312730473,1706189507315,-2751.32,0.00057678,120]
[312730474,1706189507324,-1043.0,0.0005769,2]
[312730475,1706189507335,-263.0,0.0005769,2]
[312730476,1706189507344,-400.0,0.00057696,120]
[312730477,1706189507353,-141150.57228846,0.00057753,120]
[312730478,1706189507364,-141150.57228846,0.00057756,120]
[312730479,1706189507374,-186.89901,0.00057756,120]
[312730480,1706189507384,-186.89901,0.00057756,120]
[312730481,1706189507393,-151.0,0.00057756,120]
[312730482,1706189507403,-29501.43520519,0.0005776,120]
[312730483,1706189507412,-1718.44932516,0.00057768,120]
[312730484,1706189507422,-51179.88,0.0005777,120]
[312730485,1706189507431,-151.0,0.0005777,2]
[312730486,1706189507440,-1718.44932516,0.0005777,120]
[312730487,1706189507449,-1718.44932516,0.00057778,120]
[312730488,1706189507459,-29501.43520519,0.00057782,120]
[312730489,1706189507468,-141150.57228846,0.00057786,120]
[312730490,1706189507478,-29501.43520519,0.00057791,120]
[312730491,1706189507487,-29501.43520519,0.00057793,120]
[312730492,1706189507495,-1718.44932516,0.00057794,120]
[312730493,1706189507504,-151.0,0.00057799,120]
[312730494,1706189507513,-151.0,0.00057799,120]
[312730495,1706189507523,-151.0,0.00057799,120]
[312730496,1706189507532,-141150.57228846,0.00057799,120]
[312730497,1706189507541,-17873.49078507,0.00057799,2]
[312730498,1706189507551,-1000.0,0.000578,120]
[312730499,1706189507561,-260.6283864,0.00057808,15]
[312730500,1706189507571,-264.0,0.00057808,14]
[312730501,1706189507581,-1813.51,0.00057847,120]
[312730502,1706189507590,-200.0,0.00057987,92]
[312730503,1706189507599,-200.0,0.00057987,93]
[312730504,1706189507608,-200.0,0.00057987,64]
[312730505,1706189507617,-200.0,0.00057987,72]
[312730506,1706189507628,-3702.0,0.0005799,2]
[312730507,1706189507640,-934.0,0.0005799,2]
[312730508,1706189507649,-1000.0,0.00057999,120]
[312730509,1706189507659,-100000.0,0.00058,48]
[312730510,1706189507669,-377.0,0.00058,30]
[312730511,1706189507681,-54442.34181895,0.00058,2]
[312730512,1706189507690,-500.21592521,0.00058,10]
[312730513,1706189507701,-2000.0,0.00058,120]
[312730514,1706189507712,-250.0,0.00058,120]
[312730515,1706189507722,-10700.3350002,0.00058,2]
[312730516,1706189507731,-5000.0,0.00058,120]
[312730517,1706189507741,-156.262701,0.00058,80]
[312730518,1706189507751,-502.197954,0.00058,30]
[312730519,1706189507760,-300.0,0.00058,37]
[312730520,1706189507770,-150.0,0.00058007,35]
[312730521,1706189507779,-150.0,0.00058007,35]
[312730522,1706189507788,-3260.06370402,0.00058021,30]
[312730523,1706189507798,-1327.46899482,0.00058021,30]
[312730524,1706189507808,-2137.77479761,0.00058021,30]
[312730525,1706189507818,-2667.12452485,0.00058021,30]
[312730526,1706189507827,-2362.19608449,0.00058021,30]
[312730527,1706189507836,-229.0,0.0005807,30]
[312730528,1706189507845,-150.5,0.0005808,30]
[312730529,1706189507854,-556.09777026,0.00058082,30]
[312730530,1706189507865,-2102.3414245,0.00058082,30]
[312730531,1706189507874,-200.0,0.00058082,120]
[312730532,1706189507882,-150.5,0.0005809,30]
[312730533,1706189507892,-201.83203692,0.000581,30]
[312730534,1706189507901,-780.6992596,0.0005815,110]
[312730535,1706189507910,-150.0,0.0005834,60]
[312730536,1706189507919,-150.0,0.0005834,60]
[312730537,1706189507928,-150.0,0.0005834,60]
[312730538,1706189507937,-150.0,0.0005834,60]
[312730539,1706189507946,-300.0,0.00058356,120]
[312730540,1706189507956,-300.0,0.00058356,120]
[312730541,1706189507966,-808.74,0.00058356,30]
[312730542,1706189507976,-942.96,0.00058356,30]
[312730543,1706189507985,-942.96,0.00058356,30]
[312730544,1706189507995,-942.96,0.00058356,30]
[312730545,1706189508004,-804.34,0.00058356,30]
[312730546,1706189508014,-942.96,0.00058356,30]
[312730547,1706189508023,-269.0,0.00058356,3]
[312730548,1706189508033,-3260.06370402,0.0005852,30]
[312730549,1706189508042,-1327.46899482,0.0005852,30]
[312730550,1706189508053,-2137.77479761,0.0005852,30]
[312730551,1706189508062,-2667.12452485,0.0005852,30]
[312730552,1706189508071,-2362.19608449,0.0005852,30]
[312730553,1706189508080,-394.66,0.00058622,2]
[312730554,1706189508089,-150.0,0.00058623,35]
[312730555,1706189508098,-150.0,0.00058623,35]
[312730556,1706189508108,-419.17,0.0005863,30]
[312730557,1706189508117,-150.0,0.0005863,60]
[312730558,1706189508127,-405.43,0.0005863,30]
[312730559,1706189508136,-150.0,0.0005863,30]
[312730560,1706189508145,-419.17,0.0005863,30]
[312730561,1706189508154,-150.0,0.0005863,30]
[312730562,1706189508163,-150.0,0.0005863,60]
[312730563,1706189508173,-150.0,0.0005863,60]
[312730564,1706189508182,-654.35,0.0005863,30]
[312730565,1706189508191,-150.0,0.0005863,30]
[312730566,1706189508201,-150.0,0.0005863,30]
[312730567,1706189508210,-150.0,0.0005863,30]
[312730568,1706189508220,-150.0,0.0005863,30]
[312730569,1706189508229,-150.0,0.0005863,30]
[312730570,1706189508239,-150.0,0.0005863,30]
[312730571,1706189508249,-331.78,0.0005863,30]
[312730572,1706189508258,-150.0,0.0005863,30]
[312730573,1706189508267,-409.25,0.0005863,30]
[312730574,1706189508277,-150.0,0.0005863,30]
[312730575,1706189508287,-150.0,0.0005863,30]
[312730576,1706189508297,-419.17,0.0005863,30]
[312730577,1706189508306,-294.83,0.0005863,30]
[312730578,1706189508316,-219.64,0.0005863,30]
[312730579,1706189508326,-419.17,0.0005863,30]
[312730580,1706189508335,-294.83,0.0005863,30]
[312730581,1706189508344,-409.25,0.0005863,30]
[312730582,1706189508354,-150.0,0.0005863,30]
[312730583,1706189508365,-150.0,0.0005863,30]
[312730584,1706189508375,-419.17,0.0005863,30]
[312730585,1706189508384,-294.83,0.0005863,30]
[312730586,1706189508394,-150.0,0.0005863,30]
[312730587,1706189508403,-294.83,0.0005863,30]
[312730588,1706189508413,-150.0,0.0005863,30]
[312730589,1706189508423,-150.0,0.0005863,30]
[312730590,1706189508432,-150.0,0.0005863,30]
[312730591,1706189508442,-419.17,0.0005863,30]
[312730592,1706189508452,-727.38,0.0005863,30]
[312730593,1706189508461,-150.0,0.0005863,30]
[312730594,1706189508471,-419.17,0.0005863,30]
[312730595,1706189508481,-294.83,0.0005863,30]
[312730596,1706189508490,-150.0,0.0005863,30]
[312730597,1706189508499,-150.0,0.0005863,30]
[312730598,1706189508509,-973.97,0.0005863,30]
[312730599,1706189508520,-150.0,0.0005863,30]
[312730600,1706189508530,-409.25,0.0005863,30]
[312730601,1706189508540,-294.83,0.0005863,30]
[312730602,1706189508550,-150.0,0.0005863,30]
[312730603,1706189508559,-409.25,0.0005863,30]
[312730604,1706189508568,-418.9,0.0005863,30]
[312730605,1706189508577,-150.0,0.0005863,30]
[312730606,1706189508586,-204.47,0.0005863,30]
[312730607,1706189508596,-294.83,0.0005863,30]
[312730608,1706189508606,-409.25,0.0005863,30]
[312730609,1706189508615,-150.0,0.0005863,30]
[312730610,1706189508625,-150.0,0.0005863,30]
[312730611,1706189508635,-419.17,0.0005863,30]
[312730612,1706189508647,-294.83,0.0005863,30]
[312730613,1706189508657,-409.25,0.0005863,30]
[312730614,1706189508667,-419.17,0.0005863,30]
[312730615,1706189508677,-150.0,0.0005863,30]
[312730616,1706189508688,-294.83,0.0005863,30]
[312730617,1706189508698,-150.0,0.0005863,30]
[312730618,1706189508708,-200.0,0.0005874,120]
[312730619,1706189508719,-1897.59923094,0.000588,60]
[312730620,1706189508730,-152.0,0.00058891,9]
[312730621,1706189508739,-4653.82058861,0.000589,30]
[312730622,1706189508749,-8000.0,0.000589,120]
[312730623,1706189508759,-666.0,0.00058904,2]
[312730624,1706189508769,-275.0,0.00058904,3]
[312730625,1706189508779,-200.0,0.00058987,96]
[312730626,1706189508789,-200.0,0.00058987,95]
[312730627,1706189508798,-200.0,0.00058987,66]
[312730628,1706189508809,-200.0,0.00058987,75]
[312730629,1706189508820,-5879.0,0.0005899,2]
[312730630,1706189508829,-1484.0,0.0005899,2]
[312730631,1706189508838,-100000.0,0.00059,49]
[312730632,1706189508848,-40000.0,0.00059,120]
[312730633,1706189508858,-108538.89367396,0.00059,120]
[312730634,1706189508867,-200.0,0.00059,18]
[312730635,1706189508876,-106077.68752747,0.00059,2]
[312730636,1706189508886,-5000.0,0.00059,120]
[312730637,1706189508895,-1328.27118408,0.00059,120]
[312730638,1706189508903,-500.0,0.00059,120]
[312730639,1706189508913,-500.0,0.00059,120]
[312730640,1706189508922,-872.0,0.00059,120]
[312730641,1706189508931,-17700.83384033,0.00059,120]
[312730642,1706189508941,-163.2,0.00059,30]
[312730643,1706189508950,-2000.0,0.00059,120]
[312730644,1706189508960,-1003.11251681,0.00059,60]
[312730645,1706189508969,-1000.0,0.00059,90]
[312730646,1706189508979,-500.0,0.00059,120]
[312730647,1706189508988,-2951.30222089,0.00059,30]
[312730648,1706189508998,-500.0,0.00059,30]
[312730649,1706189509007,-300.0,0.00059,39]
[312730650,1706189509017,-3260.06370402,0.00059019,30]
[312730651,1706189509026,-1327.46899482,0.00059019,30]
[312730652,1706189509036,-2137.77479761,0.00059019,30]
[312730653,1706189509045,-2667.12452485,0.00059019,30]
[312730654,1706189509054,-2362.19608449,0.00059019,30]
[312730655,1706189509064,-780.6992596,0.00059025,115]
[312730656,1706189509073,-566.055081,0.0005909,2]
[312730657,1706189509083,-200.0,0.00059096,120]
[312730658,1706189509092,-292.31,0.00059123,30]
[312730659,1706189509101,-292.31,0.00059123,30]
[312730660,1706189509111,-292.31,0.00059123,30]
[312730661,1706189509121,-292.31,0.00059123,30]
[312730662,1706189509130,-292.31,0.00059123,30]
[312730663,1706189509140,-292.31,0.00059123,30]
[312730664,1706189509149,-292.31,0.00059123,30]
[312730665,1706189509159,-292.31,0.00059123,30]
[312730666,1706189509169,-292.31,0.00059123,30]
[312730667,1706189509179,-292.31,0.00059123,30]
[312730668,1706189509189,-292.31,0.00059123,30]
[312730669,1706189509199,-292.31,0.00059123,30]
[312730670,1706189509209,-292.31,0.00059123,30]
[312730671,1706189509218,-292.31,0.00059123,30]
[312730672,1706189509228,-292.31,0.00059123,30]
[312730673,1706189509239,-191.68,0.00059178,30]
[312730674,1706189509249,-150.0,0.00059178,30]
[312730675,1706189509259,-150.0,0.00059178,30]
[312730676,1706189509268,-150.0,0.00059178,30]
[312730677,1706189509279,-150.0,0.00059178,30]
[312730678,1706189509289,-150.0,0.00059178,30]
[312730679,1706189509298,-150.0,0.00059239,42]
[312730680,1706189509308,-150.0,0.00059239,42]
[312730681,1706189509317,-280.0,0.00059452,3]
[312730682,1706189509327,-409.25,0.00059452,30]
[312730683,1706189509336,-409.25,0.00059452,30]
[312730684,1706189509346,-150.0,0.00059452,30]
[312730685,1706189509355,-150.0,0.00059452,30]
[312730686,1706189509365,-419.17,0.00059452,30]
[312730687,1706189509375,-294.83,0.00059452,30]
[312730688,1706189509384,-644.3,0.00059452,30]
[312730689,1706189509393,-150.0,0.00059452,30]
[312730690,1706189509403,-419.17,0.00059452,30]
[312730691,1706189509412,-294.83,0.00059452,30]
[312730692,1706189509422,-409.25,0.00059452,30]
[312730693,1706189509431,-150.0,0.00059452,30]
[312730694,1706189509441,-294.83,0.00059452,30]
[312730695,1706189509451,-409.25,0.00059452,30]
[312730696,1706189509461,-150.0,0.00059452,30]
[312730697,1706189509470,-294.83,0.00059452,30]
[312730698,1706189509479,-409.25,0.00059452,30]
[312730699,1706189509489,-294.83,0.00059452,30]
[312730700,1706189509498,-150.0,0.00059452,30]
[312730701,1706189509507,-409.25,0.00059452,30]
[312730702,1706189509517,-294.83,0.00059452,30]
[312730703,1706189509526,-150.0,0.00059452,30]
[312730704,1706189509536,-150.0,0.00059452,30]
[312730705,1706189509545,-294.83,0.00059452,30]
[312730706,1706189509555,-409.25,0.00059452,30]
[312730707,1706189509565,-406.13,0.00059452,30]
[312730708,1706189509574,-294.83,0.00059452,30]
[312730709,1706189509583,-294.83,0.00059452,30]
[312730710,1706189509593,-294.83,0.00059452,30]
[312730711,1706189509602,-294.83,0.00059452,30]
[312730712,1706189509612,-150.0,0.00059452,30]
[312730713,1706189509621,-150.0,0.00059452,30]
[312730714,1706189509636,-150.0,0.00059452,30]
[312730715,1706189509645,-150.0,0.00059452,30]
[312730716,1706189509655,-300.0,0.00059452,30]
[312730717,1706189509666,-409.25,0.00059452,30]
[312730718,1706189509675,-409.25,0.00059452,30]
[312730719,1706189509685,-150.0,0.00059452,30]
[312730720,1706189509694,-150.0,0.00059452,30]
[312730721,1706189509703,-150.0,0.00059452,30]
[312730722,1706189509714,-150.0,0.00059452,30]
[312730723,1706189509724,-3260.06370402,0.00059517,30]
[312730724,1706189509733,-1327.46899482,0.00059517,30]
[312730725,1706189509742,-2137.77479761,0.00059517,30]